bitfinex/quotes_ETHUSD_20240715
["timestamp","ask_amount","ask_price","bid_price","bid_amount"]
[1721002435425,2.46581,3244.4,3243.5,2.629]
[1721002436316,0.32248815,3244.6,3243.5,4.485]
[1721002436737,3.0,3245.5,3243.5,4.485]
[1721002436738,2.46525,3245.1,3243.9,2.629]
[1721002437121,2.7876893,3245.1,3243.9,2.629]
[1721002437357,0.3224393,3245.1,3244.0,2.3844465]
[1721002437528,0.83566623,3245.1,3244.0,7.86574465]
[1721002439657,1.0675751,3245.0,3244.0,7.86574465]
[1721002439864,3.30091623,3245.1,3244.0,7.1788]
[1721002440045,1.0675792,3245.0,3244.0,7.1788]
[1721002440355,1.06758752,3244.9,3244.0,7.1788]
[1721002440654,3.30091623,3245.1,3244.0,7.1788]
[1721002440955,1.06759899,3245.0,3244.0,7.1788]
[1721002441258,3.96988051,3244.9,3244.0,5.3228]
[1721002441433,2.46571,3244.5,3243.9,3.85468028]
[1721002441781,1.06775285,3244.4,3243.9,3.85468028]
[1721002442054,2.46571,3244.5,3243.5,8.0503]
[1721002442055,2.46571,3244.5,3243.5,11.90498028]
[1721002442244,1.56091981,3244.4,3243.5,11.90498028]
[1721002442451,1.06777981,3244.3,3243.5,11.90498028]
[1721002442653,0.49314,3244.4,3243.5,11.90498028]
[1721002442857,1.06776906,3244.3,3243.5,11.90498028]
[1721002443155,0.49314,3244.4,3243.5,11.90498028]
[1721002443358,1.06773214,3244.3,3243.6,1.19049803]
[1721002443566,2.46571,3244.5,3243.5,11.90498028]
[1721002443727,1.06772165,3244.4,3243.5,11.90498028]
[1721002444066,1.06772165,3244.3,3243.5,11.90498028]
[1721002444377,2.46571,3244.5,3243.5,11.90498028]
[1721002444537,1.06771137,3244.4,3243.5,11.90498028]
[1721002444745,0.49314,3244.5,3243.5,11.90498028]
[1721002444957,1.06771504,3244.4,3243.5,11.90498028]
[1721002445266,2.46563,3244.6,3243.5,11.90498028]
[1721002445429,1.06767976,3244.5,3243.5,11.90498028]
[1721002447761,1.06768472,3244.4,3243.5,11.90498028]
[1721002448136,1.0676803,3244.3,3243.5,11.90498028]
[1721002448337,1.0676803,3244.2,3243.5,13.11017339]
[1721002448545,1.0676803,3244.5,3243.5,13.11017339]
[1721002448726,0.48379273,3244.1,3243.5,13.11017339]
[1721002448929,1.0676803,3244.0,3243.5,13.11017339]
[1721002451162,1.0676803,3244.0,3243.5,9.25549311]
[1721002451365,0.48379273,3244.1,3243.5,9.25549311]
[1721002451579,1.06773317,3244.0,3243.5,9.25549311]
[1721002451757,0.48379273,3244.1,3243.5,9.25549311]
[1721002451962,1.06773385,3244.0,3243.5,9.25549311]
[1721002452165,0.48379273,3244.1,3243.5,9.25549311]
[1721002452469,1.06772692,3244.0,3243.5,9.25549311]
[1721002452652,0.48379273,3244.1,3243.5,9.25549311]
[1721002452851,1.06770486,3244.0,3243.5,9.25549311]
[1721002453175,0.48379273,3244.1,3243.5,9.25549311]
[1721002453337,1.06769413,3244.0,3243.5,9.25549311]
[1721002453667,0.48379273,3244.1,3243.5,9.25549311]
[1721002453972,1.06770613,3244.0,3243.5,9.25549311]
[1721002454343,0.48379273,3244.1,3243.6,0.92554931]
[1721002455263,1.0676802,3244.0,3243.6,0.92554931]
[1721002455473,0.48379273,3244.1,3243.6,0.92554931]
[1721002455657,1.06769346,3244.0,3243.6,0.92554931]
[1721002455841,0.48379273,3244.1,3243.6,0.92554931]
[1721002456041,1.06772025,3244.0,3243.5,8.0503]
[1721002456278,0.48379273,3244.1,3243.5,8.0503]
[1721002456453,1.06771189,3244.0,3243.5,8.0503]
[1721002456646,0.48379273,3244.1,3243.5,8.0503]
[1721002456848,1.06767233,3244.0,3243.5,9.9063]
[1721002457048,0.95057596,3244.5,3243.9,2.629]
[1721002457049,0.63371731,3244.4,3243.9,2.629]
[1721002457244,1.06762557,3244.3,3244.0,2.4521]
[1721002457563,1.06762557,3244.2,3244.0,4.3081]
[1721002457752,0.63371731,3244.5,3244.0,4.3081]
[1721002457948,1.06754857,3244.4,3244.0,4.3081]
[1721002458262,1.06755277,3244.3,3244.0,4.3081]
[1721002458454,0.63524945,3244.4,3244.0,4.3081]
[1721002458653,1.70280281,3244.3,3244.0,2.4521]
[1721002458865,1.70280281,3244.2,3243.9,2.629]
[1721002459042,0.2655677,3244.3,3243.9,2.629]
[1721002459043,1.70280281,3244.1,3243.9,2.629]
[1721002459250,1.06755336,3244.0,3243.7,2.493]
[1721002459567,1.70280281,3244.0,3243.7,2.493]
[1721002459896,1.06755336,3243.9,3243.7,2.493]
[1721002460204,1.06755336,3243.9,3243.5,2.629]
[1721002460205,1.96837051,3243.9,3243.5,2.629]
[1721002460349,0.63599893,3243.6,3243.3,2.4649]
[1721002460543,1.06755336,3243.5,3243.3,2.4649]
[1721002460761,1.70355229,3243.5,3243.3,2.4649]
[1721002460955,0.63599893,3243.5,3243.3,2.4649]
[1721002461374,0.63599893,3243.6,3243.3,2.4649]
[1721002462374,0.63599893,3243.5,3243.3,2.4649]
[1721002462775,0.63599893,3243.6,3243.3,2.4649]
[1721002463004,1.98145856,3243.5,3243.3,2.4649]
[1721002463144,0.63599893,3243.4,3243.3,2.4649]
[1721002463546,0.63599893,3243.4,3243.3,4.3209]
[1721002463844,1.27049891,3243.7,3243.3,8.70135803]
[1721002463845,0.63599893,3243.5,3243.3,8.70135803]
[1721002464056,0.63599893,3243.5,3243.4,3.0]
[1721002464559,2.29829456,3243.5,3243.4,3.0]
[1721002464758,0.95287418,3243.5,3243.3,2.4649]
[1721002464943,0.63709565,3243.4,3243.3,2.4649]
[1721002466576,0.63709565,3243.5,3243.3,4.3209]
[1721002466876,0.63709565,3243.5,3243.3,5.31589]
[1721002467181,0.63709565,3243.5,3243.4,3.0]
[1721002468168,0.63709565,3243.5,3243.4,4.856]
[1721002468503,0.63709565,3243.8,3243.5,4.2346]
[1721002468694,0.63709565,3243.9,3243.7,1.856]
[1721002468852,0.63709565,3243.9,3243.7,4.2346]
[1721002469050,0.63709565,3243.9,3243.8,4.856]
[1721002469284,0.63709565,3244.0,3243.8,4.856]
[1721002469482,0.63709565,3243.9,3243.8,4.856]
[1721002470653,0.63709565,3243.9,3243.8,3.0]
[1721002470854,0.95287418,3243.9,3243.7,5.3786]
[1721002471059,0.95287418,3243.8,3243.7,3.0]
[1721002471364,2.2981473,3243.8,3243.7,3.0]
[1721002471775,0.95287418,3243.8,3243.7,3.0]
[1721002473304,0.95621376,3243.8,3243.7,3.0]
[1721002473698,2.62024212,3243.9,3243.7,3.0]
[1721002474003,1.6245621,3243.8,3243.7,3.0]
[1721002474169,1.62458034,3243.8,3243.7,3.0]
[1721002474380,1.62458044,3243.8,3243.7,3.0]
[1721002474575,2.89953212,3243.8,3243.7,3.0]
[1721002474791,3.9672439,3243.8,3243.7,3.0]
[1721002474967,2.69229222,3243.8,3243.7,3.0]
[1721002475168,3.96725954,3243.8,3243.7,3.0]
[1721002475396,2.69229222,3243.8,3243.7,3.0]
[1721002475680,4.71460212,3243.8,3243.7,3.0]
[1721002475864,4.71460212,3243.8,3243.3,3.0]
[1721002476060,0.63753975,3243.4,3243.2,2.629]
[1721002476269,0.95630962,3243.3,3243.2,2.629]
[1721002476590,1.2750795,3243.3,3243.2,2.629]
[1721002476794,1.62478658,3243.3,3243.2,2.629]
[1721002477395,1.52132054,3243.3,3243.2,2.629]
[1721002477569,2.30169954,3243.3,3243.2,5.629]
[1721002477766,2.30169954,3243.3,3243.2,7.485]
[1721002478088,0.63756039,3243.3,3243.2,8.67912803]
[1721002480404,0.95625353,3243.4,3243.2,8.67912803]
[1721002480903,0.63775491,3243.3,3243.2,8.67912803]
[1721002481080,0.95625353,3243.4,3243.2,7.485]
[1721002481398,0.63775729,3243.3,3243.2,7.485]
[1721002481571,0.63776019,3243.3,3243.2,7.485]
[1721002481772,0.95625353,3243.4,3243.2,7.485]
[1721002482500,0.95625353,3243.4,3243.2,5.629]
[1721002482715,0.95625353,3243.3,3243.2,5.629]
[1721002483303,2.41341278,3243.3,3243.2,5.629]
[1721002483715,4.00780006,3243.3,3243.2,5.629]
[1721002483930,2.2695,3243.8,3243.2,5.629]
[1721002484074,2.34342511,3243.3,3243.2,5.629]
[1721002484382,2.62108377,3243.3,3243.2,5.629]
[1721002484783,1.3455766,3243.3,3243.2,5.629]
[1721002484978,2.62114733,3243.3,3243.2,5.629]
[1721002486423,2.89944404,3243.3,3243.2,5.629]
[1721002487294,1.62380592,3243.3,3243.2,8.0479]
[1721002487497,2.30236984,3243.3,3243.2,8.0479]
[1721002487702,0.95686063,3243.3,3243.2,8.0479]
[1721002489019,1.27557073,3243.5,3243.2,8.0479]
[1721002489020,0.95686063,3243.4,3243.2,8.0479]
[1721002489401,0.95686063,3243.3,3243.2,8.0479]
[1721002489921,0.95686063,3243.4,3243.2,8.0479]
[1721002490217,0.95686063,3243.5,3243.3,4.95519]
[1721002490394,5.03921002,3244.4,3243.4,4.856]
[1721002490395,2.80649833,3244.4,3243.4,4.856]
[1721002490720,0.63793663,3243.5,3243.4,4.856]
[1721002491013,0.63793663,3243.5,3243.4,7.485]
[1721002491207,0.63793663,3243.5,3243.4,8.543419]
[1721002491707,0.95690494,3243.6,3243.4,8.543419]
[1721002492115,0.95690494,3243.5,3243.4,8.543419]
[1721002492326,0.95690494,3243.5,3243.4,7.485]
[1721002493828,2.30204388,3243.5,3243.4,7.485]
[1721002494220,2.30204388,3243.5,3243.4,5.629]
[1721002494221,1.62355587,3243.5,3243.4,5.629]
[1721002495014,2.89942913,3243.5,3243.4,5.629]
[1721002495215,1.62355587,3243.5,3243.4,5.629]
[1721002495404,0.95661008,3243.5,3243.4,5.629]
[1721002495743,0.95661008,3243.6,3243.4,5.629]
[1721002496236,0.95661008,3243.5,3243.4,5.629]
[1721002497515,0.95661008,3243.6,3243.4,5.629]
[1721002498531,0.95661008,3243.5,3243.4,5.629]
[1721002500631,0.55551409,3243.7,3243.5,1.856]
[1721002500836,1.59365474,3244.0,3243.6,4.73909]
[1721002500837,0.63758987,3243.9,3243.6,4.73909]
[1721002501140,0.95637811,3244.0,3243.8,5.09524]
[1721002501141,0.63758987,3244.0,3243.8,5.09524]
[1721002501340,0.63758987,3244.0,3243.9,3.0]
[1721002501536,0.95637811,3244.1,3243.9,3.0]
[1721002501744,0.95637811,3244.0,3243.9,3.0]
[1721002501937,2.3015404,3244.0,3243.9,3.0]
[1721002502677,2.30154776,3244.0,3243.9,3.0]
[1721002502892,3.79521165,3244.0,3243.9,3.0]
[1721002505269,1.45245906,3244.0,3243.9,3.0]
[1721002505471,2.30141986,3244.0,3243.9,3.0]
[1721002505987,2.7275645,3244.0,3243.9,3.0]
[1721002506187,3.79522127,3244.0,3243.9,3.0]
[1721002506343,3.79528247,3244.0,3243.9,3.0]
[1721002507495,3.79486109,3244.0,3243.9,3.0]
[1721002507859,3.79486749,3244.0,3243.9,3.0]
[1721002508096,1.45253277,3244.0,3243.9,3.0]
[1721002508947,2.72666392,3244.0,3243.9,3.0]
[1721002509894,3.7943284,3244.0,3243.9,3.0]
[1721002510243,2.72666392,3244.0,3243.9,3.0]
[1721002510676,4.22628589,3244.0,3243.4,2.629]
[1721002510889,0.63699294,3243.6,3243.5,3.0]
[1721002511274,0.95548941,3243.7,3243.5,3.0]
[1721002511587,0.63700141,3243.6,3243.5,3.0]
[1721002512315,0.95548941,3243.7,3243.5,3.0]
[1721002512611,0.6369453,3243.6,3243.5,3.0]
[1721002513762,0.6369453,3243.6,3243.5,4.854]
[1721002513984,0.6369453,3243.7,3243.5,5.83946]
[1721002514680,0.6369453,3243.8,3243.5,5.83946]
[1721002514889,0.6369453,3243.7,3243.5,5.83946]
[1721002515102,0.63715,3243.8,3243.7,4.2299]
[1721002515256,1.91089153,3244.6,3243.7,4.2299]
[1721002515257,1.27398588,3244.4,3244.3,4.31986]
[1721002515452,1.59337211,3245.3,3244.9,1.854]
[1721002515656,1.59337211,3245.5,3245.0,4.5446256]
[1721002515893,1.59365464,3245.7,3245.4,2.629]
[1721002516198,1.06709788,3245.6,3245.3,2.629]
[1721002516399,1.59365464,3246.0,3245.3,2.69062124]
[1721002516570,2.41156537,3245.9,3245.4,3.0]
[1721002516768,1.34451301,3245.8,3245.4,3.0]
[1721002517114,1.34451301,3245.8,3245.4,4.854]
[1721002517260,0.400522,3245.9,3245.4,4.854]
[1721002517601,1.59365464,3246.4,3245.7,2.629]
[1721002517899,2.41148229,3246.3,3245.8,3.0]
[1721002518195,2.41148229,3246.2,3245.8,3.0]
[1721002518400,1.34449201,3246.1,3245.8,3.0]
[1721002518608,1.58943441,3246.4,3245.8,3.0]
[1721002518906,4.23592129,3246.7,3245.8,3.0]
[1721002518907,2.57040733,3246.3,3245.8,3.0]
[1721002519115,1.58943441,3246.5,3245.8,3.0]
[1721002519280,1.34442475,3246.4,3245.8,3.0]
[1721002519611,1.58943441,3246.6,3245.8,3.0]
[1721002519797,1.58943441,3246.4,3245.8,3.0]
[1721002519957,2.4115749,3246.3,3245.4,3.0]
[1721002520325,1.98123785,3246.5,3245.4,3.0]
[1721002520461,1.06711537,3246.2,3245.4,3.0]
[1721002520665,2.2588,3246.0,3245.4,3.0]
[1721002520912,0.46704557,3245.9,3244.1,3.06941229]
[1721002521113,4.00152145,3245.9,3244.1,2.4081]
[1721002521320,2.41208704,3245.8,3244.6,2.629]
[1721002521617,2.2588,3246.0,3244.6,2.629]
[1721002521618,2.2588,3246.0,3244.7,1.854]
[1721002521774,2.41199911,3245.9,3244.7,1.854]
[1721002521976,2.41199499,3245.8,3244.7,1.854]
[1721002522213,0.2411995,3245.7,3244.7,1.854]
[1721002522373,1.06730409,3245.7,3244.7,1.854]
[1721002522576,2.4469,3245.5,3244.3,3.85468028]
[1721002522791,1.58694768,3245.3,3244.3,3.85468028]
[1721002522999,2.46525,3245.1,3244.3,3.85468028]
[1721002523196,2.41254141,3245.0,3244.3,3.85468028]
[1721002523396,0.48777914,3244.9,3244.3,3.85468028]
[1721002523891,1.26928959,3245.2,3244.3,5.70868028]
[1721002524119,0.9519524,3245.1,3244.4,2.629]
[1721002524420,1.26928959,3245.2,3244.4,2.629]
[1721002524421,0.9519524,3245.2,3244.4,4.483]
[1721002524720,1.58694768,3245.5,3244.4,4.483]
[1721002524721,0.9519524,3245.4,3244.4,4.483]
[1721002524912,0.9519524,3245.4,3244.4,5.56336003]
[1721002524913,1.1740766,3245.4,3244.4,5.56336003]
[1721002525212,1.1740766,3245.4,3244.4,7.89626003]
[1721002525412,0.63476946,3245.3,3244.5,0.06163425]
[1721002525559,0.63476946,3245.5,3244.8,2.629]
[1721002525910,0.63476946,3245.4,3244.8,2.629]
[1721002526066,0.63476946,3245.5,3244.8,2.629]
[1721002526267,0.63476946,3245.5,3244.8,4.483]
[1721002526475,0.63476946,3245.6,3244.8,4.483]
[1721002526878,0.63476946,3245.7,3244.8,4.9313]
[1721002527282,0.63476946,3245.8,3245.2,4.483]
[1721002527491,0.63476946,3245.9,3245.2,4.483]
[1721002527764,0.63476946,3245.8,3245.2,4.483]
[1721002529197,0.63476946,3245.9,3245.2,4.483]
[1721002529780,0.79344165,3245.9,3245.2,4.483]
[1721002530508,0.63476946,3245.8,3245.2,2.629]
[1721002531400,0.63476946,3245.8,3244.7,2.46555]
[1721002531401,0.63476946,3245.7,3244.8,2.629]
[1721002531596,0.63476946,3245.6,3244.9,3.0]
[1721002532097,0.15867219,3245.5,3244.9,3.0]
[1721002532771,0.63476946,3245.7,3244.9,3.0]
[1721002532973,0.63476946,3245.6,3244.9,3.0]
[1721002533387,0.63474574,3245.6,3244.9,3.0]
[1721002534512,0.63484642,3245.7,3244.9,3.0]
[1721002534694,0.63484642,3245.9,3245.2,4.483]
[1721002535024,0.95226963,3246.1,3245.2,4.483]
[1721002535025,0.63484642,3246.1,3245.2,4.483]
[1721002536203,0.63484642,3246.1,3245.3,0.06162]
[1721002536406,0.63484642,3246.2,3245.4,1.854]
[1721002536711,0.63484642,3246.1,3245.4,1.854]
[1721002537010,0.63484642,3246.2,3245.4,1.854]
[1721002537188,0.95226963,3246.3,3245.4,1.854]
[1721002537189,0.79355803,3246.1,3245.4,1.854]
[1721002537391,0.79355803,3246.1,3245.2,2.629]
[1721002537392,0.63484642,3246.0,3245.3,1.854]
[1721002537807,0.7935255,3246.1,3245.3,1.854]
[1721002538001,0.63481389,3246.0,3245.3,1.854]
[1721002538201,0.80938852,3246.0,3245.3,1.854]
[1721002538618,0.80938852,3246.0,3245.2,2.629]
[1721002538782,1.70195126,3245.9,3245.2,2.629]
[1721002539084,0.63481389,3245.9,3245.2,2.629]
[1721002539289,0.63481389,3245.9,3245.1,3.85468028]
[1721002539512,0.17616094,3245.8,3245.1,3.85468028]
[1721002539815,0.81097483,3245.8,3245.1,3.85468028]
[1721002539981,1.70203628,3245.7,3245.1,3.85468028]
[1721002540181,1.70206902,3245.6,3245.1,3.85468028]
[1721002540382,1.06728414,3245.5,3245.1,3.85468028]
[1721002540607,0.1702098,3245.4,3245.1,3.85468028]
[1721002540826,0.63481389,3245.5,3245.1,3.85468028]
[1721002541829,0.63481389,3245.6,3245.1,3.85468028]
[1721002542154,1.0672679,3245.5,3245.1,3.85468028]
[1721002542358,1.70208179,3245.5,3245.1,3.85468028]
[1721002542641,0.17020818,3245.4,3245.1,3.85468028]
[1721002542834,0.63481389,3245.5,3245.1,3.85468028]
[1721002543221,1.06727499,3245.4,3244.8,2.629]
[1721002543542,1.06728015,3245.3,3244.8,2.629]
[1721002543747,0.63481389,3245.5,3244.8,2.629]
[1721002544053,1.0672812,3245.4,3244.8,2.629]
[1721002544216,1.06727849,3245.3,3244.8,2.629]
[1721002544539,0.63481389,3245.5,3244.8,2.629]
[1721002544746,1.06726704,3245.4,3244.8,2.629]
[1721002544933,1.06726704,3245.3,3244.8,2.629]
[1721002545139,1.70208093,3245.4,3244.8,2.629]
[1721002545309,1.06726704,3245.3,3244.8,2.629]
[1721002546144,1.70208093,3245.3,3244.8,2.629]
[1721002546330,1.70208093,3245.2,3244.8,2.629]
[1721002546532,1.06726704,3245.1,3244.7,3.85468028]
[1721002546736,1.70208093,3245.1,3244.6,2.3565]
[1721002546917,1.06726704,3245.0,3244.6,2.3565]
[1721002547416,0.63481389,3245.1,3244.6,2.3565]
[1721002547616,1.06736203,3245.0,3244.6,2.3565]
[1721002547811,1.23352136,3245.3,3244.6,2.3565]
[1721002547812,0.91611441,3245.3,3244.8,2.629]
[1721002548040,1.06729929,3245.2,3244.8,2.629]
[1721002548369,1.06729929,3245.1,3244.8,2.629]
[1721002548516,0.91611441,3245.3,3244.8,2.629]
[1721002548719,1.25413837,3245.2,3244.8,2.629]
[1721002548941,1.06730484,3245.1,3244.8,2.629]
[1721002550322,0.63481389,3245.3,3244.8,2.629]
[1721002550523,1.06724452,3245.2,3244.8,2.629]
[1721002550733,1.06726643,3245.1,3244.8,2.629]
[1721002550952,0.63481389,3245.3,3244.8,2.629]
[1721002551130,1.06725945,3245.2,3244.8,2.629]
[1721002551449,1.06725945,3245.1,3244.8,2.629]
[1721002551629,0.63593573,3245.3,3244.8,2.629]
[1721002551833,1.70321862,3245.2,3244.8,2.629]
[1721002552143,1.55088249,3245.1,3244.8,2.629]
[1721002552350,1.06728289,3245.0,3244.8,2.629]
[1721002552732,1.06728289,3245.0,3244.4,5.629]
[1721002552733,1.70321862,3245.0,3244.4,5.629]
[1721002552937,1.4375032,3245.1,3244.4,5.629]
[1721002552938,1.70321862,3244.9,3244.4,5.629]
[1721002553255,1.70321862,3244.8,3244.4,5.629]
[1721002553553,1.06745481,3244.7,3244.4,5.629]
[1721002553755,0.63593573,3244.8,3244.4,5.629]
[1721002554060,1.06745499,3244.7,3244.4,5.629]
[1721002554256,0.63593573,3244.8,3244.4,5.629]
[1721002554461,1.06742788,3244.7,3244.4,5.629]
[1721002554761,1.06745538,3244.6,3244.4,2.629]
[1721002554926,1.06745538,3244.5,3244.0,2.629]
[1721002555130,0.63593573,3244.4,3244.0,2.629]
[1721002555356,1.70339111,3244.3,3244.0,2.629]
[1721002555539,1.70339111,3244.2,3244.0,2.629]
[1721002555741,0.63593573,3244.2,3244.0,2.629]
[1721002556162,1.21963307,3244.4,3243.9,3.85468028]
[1721002556163,1.70362604,3244.1,3243.9,3.85468028]
[1721002556370,0.63593573,3244.1,3243.9,3.85468028]
[1721002556556,1.70364701,3244.0,3243.9,3.85468028]
[1721002556865,1.06771128,3244.0,3243.9,3.85468028]
[1721002557540,2.02161488,3244.0,3243.9,3.85468028]
[1721002557928,1.06771128,3244.0,3243.9,3.85468028]
[1721002558165,0.63563189,3244.0,3243.6,2.629]
[1721002559063,0.63563189,3243.9,3243.6,2.629]
[1721002559258,0.63563189,3244.0,3243.6,2.629]
[1721002559669,0.63563189,3243.9,3243.6,2.629]
[1721002560367,0.63578281,3243.9,3243.6,2.629]
[1721002560870,0.63578281,3243.8,3243.6,2.629]
[1721002561033,0.63578281,3243.9,3243.6,2.629]
[1721002561457,0.63578281,3244.0,3243.6,2.629]
[1721002561828,0.63578281,3244.1,3243.6,2.629]
[1721002562665,0.63578281,3244.3,3244.1,2.28]
[1721002562866,0.63578281,3244.5,3244.1,2.28]
[1721002563046,0.63578281,3244.6,3244.1,2.28]
[1721002563246,0.63578281,3244.7,3244.4,2.629]
[1721002564068,0.63578281,3244.8,3244.4,2.629]
[1721002564240,0.63578281,3244.7,3244.4,2.629]
[1721002565367,0.63578281,3244.9,3244.6,1.854]
[1721002565541,0.4835996,3245.1,3244.8,4.483]
[1721002565740,0.63578281,3245.4,3244.9,2.3612]
[1721002566037,0.63578281,3245.4,3244.9,2.42282776]
[1721002566448,0.63578281,3245.5,3245.3,2.629]
[1721002566654,1.11937189,3245.7,3245.3,2.629]
[1721002566959,0.63578281,3245.8,3245.3,2.629]
[1721002567373,0.63578281,3245.8,3245.7,4.483]
[1721002567550,0.63578281,3246.0,3245.7,4.483]
[1721002568298,1.11925212,3246.0,3245.7,4.483]
[1721002568844,0.48346931,3246.0,3245.7,4.483]
[1721002569084,1.11925212,3246.0,3245.7,2.629]
[1721002569259,0.63578281,3245.9,3245.7,2.629]
[1721002569464,1.11925212,3246.0,3245.7,2.629]
[1721002569680,0.63578281,3245.9,3245.7,2.629]
[1721002569882,1.11925212,3246.0,3245.7,2.629]
[1721002571252,0.48346931,3246.0,3245.7,2.629]
[1721002573967,1.11925212,3246.0,3245.7,2.629]
[1721002574194,0.63578281,3245.9,3245.7,2.629]
[1721002574393,1.11925212,3246.0,3245.7,2.629]
[1721002575088,0.63552385,3245.9,3245.7,2.629]
[1721002575259,0.63552385,3245.9,3245.3,4.483]
[1721002575586,1.43675508,3246.0,3245.3,3.95587203]
[1721002575587,0.63552385,3245.8,3245.3,3.95587203]
[1721002575789,0.63552385,3245.7,3245.3,2.629]
[1721002575955,0.63552385,3245.8,3245.3,2.629]
[1721002576295,0.63552385,3245.8,3245.3,4.483]
[1721002577083,0.63552385,3245.9,3245.3,4.483]
[1721002577685,0.63552385,3245.8,3245.3,4.483]
[1721002578198,0.63552385,3245.8,3245.3,2.629]
[1721002578388,0.63552385,3245.6,3245.3,2.629]
[1721002578892,0.63552385,3245.8,3245.3,2.629]
[1721002580363,0.63552385,3245.7,3245.3,2.629]
[1721002580590,0.63552385,3245.5,3245.3,2.629]
[1721002580888,0.63552385,3245.5,3245.2,3.85468028]
[1721002581261,0.63552385,3245.4,3245.2,3.85468028]
[1721002581661,0.95328577,3245.4,3245.2,3.85468028]
[1721002581887,0.95328577,3245.3,3244.9,2.629]
[1721002582089,1.42992866,3245.5,3244.6,4.00530952]
[1721002582090,0.63558842,3245.1,3244.6,3.85468028]
[1721002582298,0.63558842,3244.8,3244.2,6.33478028]
[1721002582493,0.63558842,3244.9,3244.2,6.33478028]
[1721002583505,0.63558842,3245.0,3244.2,8.18878028]
[1721002583666,0.63558842,3244.9,3244.2,8.18878028]
[1721002583867,0.63558842,3244.8,3244.2,9.51715831]
[1721002584068,0.63558842,3244.9,3244.2,9.51715831]
[1721002584919,0.63558842,3245.0,3244.2,11.98308831]
[1721002585069,0.63558842,3245.0,3244.3,3.31520883]
[1721002585465,0.63558842,3244.9,3244.3,3.31520883]
[1721002585964,0.63558842,3245.0,3244.3,3.31520883]
[1721002587685,0.63558842,3245.0,3244.5,4.483]
[1721002587872,0.63558842,3245.1,3244.6,0.51609729]
[1721002588072,0.63558842,3245.2,3244.6,0.45446387]
[1721002588272,0.63558842,3245.1,3244.6,0.45446387]
[1721002589371,0.63558842,3245.1,3244.5,4.483]
[1721002590197,0.63558842,3245.1,3244.5,2.629]
[1721002590400,0.63558842,3244.8,3244.2,3.85468028]
[1721002590928,0.63558842,3244.7,3244.2,3.85468028]
[1721002591126,0.63558842,3244.8,3244.2,3.85468028]
[1721002592191,0.63558842,3244.7,3244.2,3.85468028]
[1721002592393,0.63558842,3244.5,3244.2,3.85468028]
[1721002593314,0.63558842,3244.6,3244.2,3.85468028]
[1721002593508,0.15888742,3244.8,3244.2,3.85468028]
[1721002593718,0.63557551,3244.6,3244.2,3.85468028]
[1721002594026,0.63557551,3244.5,3243.8,3.85468028]
[1721002594240,0.63557551,3244.4,3243.8,3.85468028]
[1721002594398,2.97227551,3244.2,3243.8,3.85468028]
[1721002594781,3.73726102,3244.0,3243.8,3.85468028]
[1721002594919,5.40033795,3243.9,3243.8,3.85468028]
[1721002595119,6.46800487,3243.9,3243.8,3.85468028]
[1721002595355,2.46624,3243.8,3242.6,2.629]
[1721002595528,2.46624,3243.8,3242.2,2.629]
[1721002595529,0.63494963,3243.2,3242.2,2.629]
[1721002595728,0.63494963,3243.2,3242.2,3.1555]
[1721002595915,0.63494963,3243.2,3242.2,5.0095]
[1721002596227,0.63494963,3243.3,3242.2,5.0095]
[1721002596766,0.63494963,3243.3,3242.3,3.0]
[1721002597318,0.63494963,3243.4,3242.3,3.0]
[1721002597528,0.63494963,3243.5,3242.3,3.0]
[1721002597753,0.63494963,3243.5,3242.4,1.854]
[1721002597955,0.15873741,3243.4,3242.6,2.629]
[1721002598249,0.63494963,3243.6,3242.6,2.629]
[1721002599036,0.63494963,3243.5,3242.6,2.629]
[1721002599222,0.63494963,3243.6,3242.6,2.629]
[1721002599750,0.63494963,3243.7,3242.6,2.629]
[1721002600054,2.2658,3243.5,3242.1,4.63816879]
[1721002600254,0.63494963,3243.4,3242.1,6.8099]
[1721002600446,0.63494963,3243.4,3242.1,4.9559]
[1721002600643,0.63494963,3243.3,3242.1,4.9559]
[1721002601252,0.31015096,3243.2,3242.1,4.9559]
[1721002601450,3.87923786,3243.6,3242.1,4.9559]
[1721002601451,1.09531304,3243.6,3242.5,2.629]
[1721002601628,0.63494963,3243.7,3242.5,4.483]
[1721002601959,2.93154963,3243.9,3242.5,4.483]
[1721002602863,3.10409237,3244.1,3242.9,2.629]
[1721002603349,2.46914274,3244.1,3242.9,2.629]
[1721002603659,2.46914274,3244.1,3242.9,4.483]
[1721002603959,0.65058724,3244.1,3243.0,2.548994]
[1721002604165,0.63333885,3244.5,3243.1,4.1732]
[1721002604459,0.63333885,3244.5,3243.3,2.629]
[1721002604629,0.63333885,3244.6,3243.3,4.483]
[1721002604868,0.15833471,3244.5,3243.4,0.4483]
[1721002605068,5.50222885,3244.8,3243.4,2.3023]
[1721002605474,1.70107239,3244.7,3243.4,4.7688]
[1721002605678,0.63333885,3244.9,3243.7,4.483]
[1721002605901,1.78704875,3245.1,3244.1,2.629]
[1721002605902,2.4203876,3245.1,3244.1,2.629]
[1721002606106,2.3401914,3245.1,3244.1,4.483]
[1721002606609,2.4203876,3245.1,3244.1,4.483]
[1721002607269,1.067582,3245.0,3244.1,4.483]
[1721002607469,2.4203876,3245.1,3244.1,4.483]
[1721002607665,1.06758211,3245.0,3244.1,4.483]
[1721002607902,2.4203876,3245.1,3244.1,4.483]
[1721002608104,1.40462163,3245.0,3244.1,4.483]
[1721002608296,0.33703959,3245.0,3244.1,4.483]
[1721002608500,0.33703959,3245.0,3243.8,4.3118]
[1721002609417,1.0675818,3244.9,3243.8,4.3118]
[1721002609761,0.33703959,3245.0,3243.8,4.3118]
[1721002609889,2.4203876,3245.1,3244.1,4.483]
[1721002610213,1.06754006,3245.0,3244.1,4.483]
[1721002610394,1.78704875,3245.1,3244.1,4.483]
[1721002612328,1.78704875,3245.1,3244.1,2.629]
[1721002612633,1.24620435,3245.0,3243.8,4.3118]